bitfinex-derivatives/quotes_BTCF0:USTF0_20240913
["timestamp","ask_amount","ask_price","bid_price","bid_amount"]
[1726256698111,0.05264001,59942.0,59941.0,0.253377]
[1726256698307,0.00704001,59942.0,59941.0,0.253377]
[1726256698509,0.18922392,59944.0,59941.0,0.17]
[1726256698811,0.10585092,59944.0,59943.0,0.083375]
[1726256699514,0.11282725,59944.0,59943.0,0.083375]
[1726256699810,0.10757633,59944.0,59943.0,0.083375]
[1726256700011,0.003,59944.0,59943.0,0.16675]
[1726256700311,0.002,59944.0,59943.0,0.083375]
[1726256700501,0.0039,59954.0,59943.0,0.001]
[1726256700502,0.17,59946.0,59943.0,0.001]
[1726256700907,0.083369,59948.0,59943.0,0.001]
[1726256701106,0.083369,59947.0,59944.0,0.083373]
[1726256701306,0.0496,59949.0,59943.0,0.001]
[1726256701512,0.083373,59944.0,59943.0,0.001]
[1726256701711,0.083373,59945.0,59943.0,0.001]
[1726256702118,0.08337,59947.0,59943.0,0.001]
[1726256702525,0.058015,59949.0,59943.0,0.001]
[1726256702709,0.083373,59944.0,59943.0,0.001]
[1726256703615,0.083373,59944.0,59943.0,0.003]
[1726256704020,0.08337,59947.0,59943.0,0.089375]
[1726256704322,0.08337,59947.0,59946.0,0.3608]
[1726256704614,0.045,59953.0,59948.0,0.083368]
[1726256704820,0.00716181,59954.0,59953.0,0.083361]
[1726256705014,0.083359,59954.0,59953.0,0.17]
[1726256705211,0.083359,59954.0,59952.0,0.3608]
[1726256705413,0.049,59956.0,59953.0,0.083361]
[1726256705606,0.0084684,59955.0,59953.0,0.083361]
[1726256706010,0.005,59954.0,59953.0,0.084361]
[1726256706612,0.005,59954.0,59953.0,0.085361]
[1726256706808,0.0084684,59955.0,59953.0,0.085361]
[1726256706809,0.0134684,59955.0,59953.0,0.085361]
[1726256707222,0.003,59954.0,59953.0,0.085361]
[1726256707424,0.008,59954.0,59953.0,0.255361]
[1726256707814,0.008,59954.0,59953.0,1.484822]
[1726256708823,0.005,59954.0,59953.0,1.483822]
[1726256709015,0.008,59955.0,59954.0,0.166718]
[1726256709212,0.008,59955.0,59954.0,1.027878]
[1726256709412,0.008,59955.0,59954.0,1.627878]
[1726256709618,0.0039,59964.0,59963.0,0.083347]
[1726256709824,0.083342,59967.0,59966.0,0.083343]
[1726256711311,0.130031,59975.0,59963.0,0.72244]
[1726256711312,0.0039,59976.0,59972.0,0.083333]
[1726256711526,0.17,59983.0,59967.0,0.0039]
[1726256711527,0.083337,59970.0,59967.0,0.0039]
[1726256711719,0.17,59968.0,59964.0,0.3608]
[1726256711918,0.083344,59965.0,59960.0,0.0039]
[1726256712227,0.083354,59958.0,59957.0,0.3608]
[1726256712414,0.253354,59958.0,59957.0,0.3608]
[1726256712817,0.17,59958.0,59957.0,0.3608]
[1726256713117,0.083349,59962.0,59957.0,0.3608]
[1726256713517,0.005,59958.0,59957.0,0.3608]
[1726256715123,0.003,59958.0,59957.0,0.3678]
[1726256715517,0.253354,59958.0,59957.0,0.014]
[1726256716621,0.253354,59958.0,59957.0,0.007]
[1726256716814,0.614154,59958.0,59957.0,0.007]
[1726256717016,0.614154,59958.0,59952.0,0.0039]
[1726256717017,0.166722,59953.0,59952.0,0.0039]
[1726256717315,0.166722,59953.0,59940.0,0.3653]
[1726256717316,0.08337,59946.0,59945.0,0.0039]
[1726256717513,0.25337,59946.0,59940.0,0.36164]
[1726256717714,0.25337,59946.0,59940.0,0.3608]
[1726256718118,0.253365,59950.0,59940.0,0.3608]
[1726256718313,0.17,59950.0,59944.0,0.444172]
[1726256718521,0.08337,59947.0,59944.0,0.444172]
[1726256718830,0.083371,59946.0,59944.0,0.3608]
[1726256719127,0.083371,59946.0,59944.0,0.3658]
[1726256719728,0.083371,59946.0,59944.0,0.3768]
[1726256720127,0.083371,59946.0,59944.0,0.3718]
[1726256720427,0.083371,59946.0,59944.0,0.3818]
[1726256720819,0.083372,59945.0,59944.0,0.3818]
[1726256721323,0.083372,59945.0,59944.0,0.3708]
[1726256721534,0.083372,59945.0,59944.0,0.3768]
[1726256721729,0.083372,59945.0,59944.0,0.3718]
[1726256721931,0.00706957,59947.0,59944.0,0.3718]
[1726256722128,0.05981364,59954.0,59946.0,0.08337]
[1726256722328,0.0489,59957.0,59951.0,0.3608]
[1726256722627,0.0489,59957.0,59956.0,0.3608]
[1726256722828,0.06371364,59961.0,59956.0,0.3608]
[1726256722829,0.08335,59961.0,59959.0,0.083352]
[1726256723030,0.0934,59962.0,59959.0,0.083352]
[1726256723031,0.05979842,59960.0,59959.0,0.083352]
[1726256723224,0.05979842,59960.0,59956.0,0.3608]
[1726256723426,0.05979842,59959.0,59956.0,0.3608]
[1726256723625,0.05979842,59958.0,59956.0,0.444156]
[1726256723818,0.05979842,59957.0,59956.0,0.444156]
[1726256724824,0.083351,59960.0,59956.0,0.444156]
[1726256725031,0.083351,59960.0,59959.0,0.001]
[1726256725219,0.166703,59960.0,59959.0,0.001]
[1726256725420,1.183671,59960.0,59951.0,0.3608]
[1726256725631,0.17,59952.0,59950.0,0.087264]
[1726256725823,0.17813876,59952.0,59947.0,0.3608]
[1726256726018,0.17813876,59952.0,59951.0,0.083363]
[1726256726723,0.00913876,59952.0,59951.0,0.083363]
[1726256728133,0.00813876,59952.0,59951.0,0.089363]
[1726256728328,0.083362,59953.0,59951.0,0.089363]
[1726256728735,0.001,59952.0,59951.0,0.097363]
[1726256729226,0.0916626,59953.0,59951.0,0.090363]
[1726256729422,0.0916626,59953.0,59951.0,0.092363]
[1726256729830,0.083362,59952.0,59951.0,0.092363]
[1726256730134,0.083362,59952.0,59951.0,0.009]
[1726256730635,0.09164512,59952.0,59951.0,0.009]
[1726256730832,0.09264512,59952.0,59951.0,0.014]
[1726256731330,0.09164512,59952.0,59951.0,0.003]
[1726256731539,1.63948312,59952.0,59944.0,0.0039]
[1726256731737,0.083377,59941.0,59940.0,0.0039]
[1726256731936,0.22981667,59941.0,59932.0,0.0039]
[1726256732127,0.083388,59934.0,59930.0,0.0478]
[1726256732331,0.05981667,59933.0,59930.0,0.0478]
[1726256732635,0.17,59937.0,59927.0,0.3608]
[1726256732636,0.083394,59930.0,59927.0,0.3608]
[1726256732834,0.17,59931.0,59927.0,0.3608]
[1726256732835,0.14321167,59929.0,59927.0,0.3608]
[1726256733136,0.17,59931.0,59924.0,0.00692276]
[1726256733137,0.05981667,59928.0,59924.0,0.00692276]
[1726256733335,0.05981667,59927.0,59922.0,0.45934]
[1726256733539,0.083393,59930.0,59922.0,0.82014]
[1726256733540,0.05981667,59926.0,59922.0,0.82014]
[1726256733738,0.05981667,59925.0,59922.0,0.82014]
[1726256733939,0.05981667,59924.0,59923.0,0.083402]
[1726256734135,0.05981667,59929.0,59928.0,0.083395]
[1726256734341,0.05981667,59929.0,59928.0,0.444195]
[1726256734735,0.06081667,59929.0,59928.0,0.444195]
[1726256735336,0.06081667,59929.0,59928.0,0.093395]
[1726256735536,0.06181667,59929.0,59928.0,0.103395]
[1726256736035,0.002,59929.0,59928.0,0.103395]
[1726256743836,0.00913798,59929.0,59928.0,0.103395]
[1726256744336,0.00913798,59929.0,59928.0,0.02]
[1726256744337,0.09253198,59929.0,59928.0,0.02]
[1726256745958,0.09253198,59929.0,59920.0,0.0039]
[1726256745959,0.166804,59923.0,59922.0,0.3608]
[1726256746256,0.253402,59923.0,59922.0,0.3608]
[1726256747650,0.336804,59923.0,59922.0,0.3608]
[1726256747859,0.337804,59923.0,59922.0,0.012]
[1726256748350,0.166818,59918.0,59917.0,0.0039]
[1726256748649,0.166818,59918.0,59916.0,0.3608]
[1726256748650,0.083411,59917.0,59916.0,0.3608]
[1726256748854,0.09162964,59917.0,59916.0,0.3608]
[1726256749045,0.09162964,59917.0,59909.0,0.087321]
[1726256749046,0.083417,59913.0,59909.0,0.087321]
[1726256749253,0.083418,59912.0,59909.0,0.083421]
[1726256749954,0.083419,59911.0,59909.0,0.083421]
[1726256751647,0.084419,59911.0,59909.0,0.084421]
[1726256752043,0.085419,59911.0,59909.0,0.088421]
[1726256752254,0.002,59911.0,59910.0,0.08342]
[1726256753540,0.001,59911.0,59910.0,0.08342]
[1726256753744,0.001,59911.0,59910.0,0.08742]
[1726256753745,0.002,59911.0,59910.0,0.08742]
[1726256754855,0.002,59911.0,59910.0,0.08842]
[1726256755757,0.00932034,59911.0,59910.0,0.08842]
[1726256755952,0.002,59911.0,59910.0,0.08842]
[1726256763459,0.002,59911.0,59910.0,0.44922]
[1726256764451,0.002,59911.0,59910.0,0.08842]
[1726256765157,0.002,59911.0,59910.0,0.44922]
[1726256765949,0.00732107,59914.0,59913.0,0.083416]
[1726256766258,0.083407,59920.0,59912.0,0.083418]
[1726256766570,0.083407,59920.0,59919.0,0.083408]
[1726256766769,0.253407,59920.0,59919.0,0.083408]
[1726256766961,0.26175819,59920.0,59919.0,0.083408]
[1726256767355,0.083408,59919.0,59918.0,0.3608]
[1726256767868,0.17835119,59920.0,59919.0,0.083408]
[1726256768162,0.17935119,59920.0,59919.0,0.085408]
[1726256768660,0.001,59920.0,59919.0,0.085408]
[1726256768864,0.084407,59920.0,59919.0,0.085408]
[1726256769163,0.254407,59920.0,59919.0,0.085408]
[1726256769352,0.254407,59920.0,59919.0,0.002]
[1726256769550,0.255407,59920.0,59919.0,0.008]
[1726256772061,0.255407,59920.0,59919.0,0.091408]
[1726256772758,0.172,59920.0,59919.0,0.091408]
[1726256773067,0.06713289,59923.0,59921.0,0.083405]
[1726256773365,0.01114302,59930.0,59922.0,0.1458]
[1726256773552,0.01114302,59930.0,59929.0,0.083394]
[1726256773553,0.00724302,59930.0,59929.0,0.083394]
[1726256773758,0.083384,59937.0,59929.0,0.3608]
[1726256773961,0.083384,59937.0,59935.0,0.083386]
[1726256774667,0.083384,59936.0,59935.0,0.083386]
[1726256775367,0.083384,59936.0,59932.0,0.08339]
[1726256775669,0.083384,59936.0,59933.0,0.083388]
[1726256775878,0.083384,59936.0,59929.0,0.3608]
[1726256776167,0.105384,59936.0,59935.0,0.001]
[1726256776566,0.094384,59936.0,59933.0,0.083387]
[1726256776769,0.101384,59936.0,59933.0,0.083387]
[1726256777082,0.10876464,59936.0,59935.0,0.3608]
[1726256777469,0.10576464,59936.0,59935.0,0.3608]
[1726256777664,0.02238064,59936.0,59935.0,0.444186]
[1726256778054,0.01438064,59936.0,59935.0,0.444186]
[1726256778256,0.00738064,59936.0,59935.0,0.446186]
[1726256778465,0.17,59949.0,59935.0,0.616186]
[1726256778671,0.14318582,59949.0,59942.0,0.3608]
[1726256778867,0.083369,59947.0,59945.0,0.083371]
[1726256779275,0.083371,59946.0,59942.0,0.444175]
[1726256779967,0.083371,59946.0,59945.0,0.001]
[1726256781184,0.01,59947.0,59945.0,0.001]
[1726256781474,0.17,59948.0,59942.0,0.444176]
[1726256781475,0.09237,59946.0,59942.0,0.444176]
[1726256782369,0.083373,59944.0,59942.0,0.444176]
[1726256783268,0.083373,59944.0,59942.0,0.445176]
[1726256784078,0.05981638,59943.0,59942.0,0.445176]
[1726256784761,0.14319138,59943.0,59942.0,0.3618]
[1726256784964,0.14319138,59943.0,59942.0,0.001]
[1726256785463,0.06581638,59943.0,59942.0,0.001]
[1726256785658,0.23973025,59943.0,59942.0,0.001]
[1726256785863,0.24573025,59943.0,59942.0,0.001]
[1726256786172,0.24573025,59943.0,59942.0,0.00090001]
[1726256787369,0.32910525,59943.0,59942.0,0.00090001]
[1726256788567,1.42958525,59943.0,59942.0,0.00090001]
[1726256788767,1.49803419,59943.0,59942.0,0.00090001]
[1726256789560,0.083386,59935.0,59934.0,0.0039]
[1726256789768,0.22981638,59935.0,59933.0,0.3608]
[1726256789965,0.05981638,59934.0,59933.0,0.3608]
[1726256790168,0.14320338,59934.0,59927.0,0.083397]
[1726256790365,0.083392,59931.0,59927.0,0.083397]
[1726256790671,0.05981638,59930.0,59923.0,0.0039]
[1726256790863,0.14321038,59929.0,59922.0,0.4061]
[1726256791080,0.05981638,59928.0,59922.0,0.4061]
[1726256791365,0.083394,59929.0,59927.0,0.444196]
[1726256791564,0.05982928,59928.0,59927.0,0.447196]
[1726256792173,0.084391,59931.0,59928.0,0.083395]
[1726256792570,0.084391,59931.0,59927.0,0.3638]
[1726256792777,0.084391,59931.0,59929.0,0.083394]
[1726256793375,0.083391,59931.0,59929.0,0.083394]
[1726256794283,0.083391,59931.0,59929.0,0.085394]
[1726256795169,0.09051989,59931.0,59929.0,0.087394]
[1726256795375,0.09051989,59931.0,59929.0,0.004]
[1726256795568,0.00712889,59931.0,59930.0,0.083393]
[1726256795877,0.08339,59932.0,59930.0,0.083393]
[1726256796070,0.083389,59933.0,59930.0,0.083393]
[1726256796269,0.083389,59933.0,59931.0,0.083391]
[1726256797471,0.083386,59935.0,59932.0,0.08339]
[1726256797774,0.083388,59934.0,59932.0,0.08339]
[1726256798971,0.083388,59934.0,59932.0,0.08839]
[1726256799172,0.083388,59934.0,59933.0,0.083388]
[1726256799673,0.084388,59934.0,59933.0,0.083388]
[1726256800184,0.085388,59934.0,59933.0,0.083388]
[1726256801072,0.083388,59934.0,59933.0,0.447188]
[1726256801273,0.0039,59944.0,59933.0,0.5338]
[1726256801474,0.00828312,59952.0,59947.0,0.083369]
[1726256801475,0.0039,59948.0,59947.0,0.083369]
[1726256801668,0.3608,59953.0,59948.0,0.083367]
[1726256801669,0.444162,59953.0,59948.0,0.083367]
[1726256801869,0.45966304,59953.0,59948.0,0.083367]
[1726256802276,0.09886304,59953.0,59948.0,0.444167]
[1726256802679,0.083362,59952.0,59948.0,0.3608]
[1726256802873,0.1436,59957.0,59948.0,0.3608]
[1726256802874,0.5044,59957.0,59948.0,0.3608]
[1726256803079,0.08336,59954.0,59949.0,0.083365]
[1726256803379,0.09190874,59954.0,59950.0,0.083364]
[1726256803878,0.013,59953.0,59950.0,0.083364]
[1726256804480,0.09190874,59954.0,59950.0,0.083364]
[1726256804785,0.10590874,59954.0,59950.0,0.084364]
[1726256805280,0.11990874,59954.0,59950.0,0.084364]
[1726256805581,0.014,59953.0,59951.0,0.083363]
[1726256805973,0.014,59953.0,59952.0,0.083362]
[1726256807081,0.028,59953.0,59952.0,0.083362]
[1726256807783,0.028,59953.0,59951.0,0.083363]
[1726256808983,0.014,59953.0,59951.0,0.083363]
[1726256809285,0.014,59953.0,59952.0,0.083362]
[1726256809883,0.028,59953.0,59952.0,0.083362]
[1726256810182,0.08780564,59953.0,59952.0,0.083362]
[1726256810382,0.083362,59952.0,59951.0,0.001]
[1726256810883,0.08780564,59953.0,59951.0,0.083362]
[1726256811082,0.08780564,59953.0,59952.0,0.3608]
[1726256811282,0.08780564,59953.0,59951.0,0.083363]
[1726256811786,0.08780564,59953.0,59952.0,0.3608]
[1726256812386,0.07380564,59953.0,59952.0,0.3608]
[1726256812983,0.08780564,59953.0,59952.0,0.3618]
[1726256813179,0.07380564,59953.0,59952.0,0.3618]
[1726256813376,0.07380564,59953.0,59952.0,0.445162]
[1726256813581,0.06880564,59953.0,59952.0,0.445162]
[1726256813983,0.07680564,59953.0,59952.0,0.445162]
[1726256814684,0.06880564,59953.0,59952.0,0.445162]
[1726256814889,0.07680564,59953.0,59952.0,0.3618]
[1726256815074,0.16016664,59953.0,59952.0,0.3618]
[1726256815279,0.100361,59953.0,59952.0,0.3618]
[1726256815483,0.593222,59953.0,59952.0,0.001]
[1726256815680,0.639422,59953.0,59952.0,0.001]
[1726256815881,0.69923441,59953.0,59952.0,0.001]
[1726256816185,0.08337,59947.0,59944.0,0.3608]
[1726256816388,0.25337,59947.0,59945.0,0.083372]
[1726256816686,0.08337,59946.0,59944.0,0.3608]
[1726256816885,0.083372,59945.0,59944.0,0.3608]
[1726256817884,0.083375,59943.0,59939.0,0.083379]
[1726256818377,0.17,59942.0,59939.0,0.083379]
[1726256818787,0.083378,59941.0,59938.0,0.3608]
[1726256818990,0.17,59942.0,59935.0,0.083385]
[1726256818991,0.17,59939.0,59935.0,0.083385]
[1726256819180,0.083374,59944.0,59938.0,0.08338]
[1726256819380,0.083374,59944.0,59940.0,0.3608]
[1726256820485,0.253374,59944.0,59940.0,0.3658]
[1726256820885,0.253374,59944.0,59940.0,0.3668]
[1726256821991,0.253374,59944.0,59940.0,0.3618]
[1726256822189,0.253374,59944.0,59940.0,0.3628]
[1726256822389,0.05981764,59943.0,59940.0,0.3628]
[1726256822693,0.05981764,59942.0,59941.0,0.083377]
[1726256824491,0.083377,59941.0,59940.0,0.3618]
[1726256824685,0.31319464,59941.0,59940.0,0.3618]
[1726256825080,0.31319464,59941.0,59940.0,0.001]
[1726256825587,0.083386,59935.0,59934.0,0.0039]
[1726256825787,0.083392,59931.0,59929.0,0.3608]
[1726256825986,0.31321064,59930.0,59929.0,0.3608]
[1726256826692,0.31321064,59930.0,59922.0,0.3608]
[1726256826693,0.59061764,59930.0,59922.0,0.3608]
[1726256826889,0.253402,59923.0,59922.0,0.3608]
[1726256827085,0.253402,59923.0,59916.0,0.3608]
[1726256827086,0.59893591,59923.0,59916.0,0.3608]
[1726256827293,0.083411,59917.0,59916.0,0.3608]
[1726256827487,0.14322864,59917.0,59916.0,0.3608]
[1726256828090,0.05981764,59917.0,59916.0,0.3608]
[1726256828296,0.05981764,59917.0,59916.0,0.3638]
[1726256829598,0.06081764,59917.0,59916.0,0.3648]
[1726256829795,0.06181764,59917.0,59916.0,0.3648]
[1726256830293,0.002,59917.0,59916.0,0.3648]
[1726256830788,0.085411,59917.0,59916.0,0.3648]
[1726256830989,0.002,59917.0,59916.0,0.3648]
[1726256831293,0.085411,59917.0,59916.0,0.3648]
[1726256831487,0.09360575,59917.0,59916.0,0.3648]
[1726256832796,0.00919475,59917.0,59916.0,0.3618]
[1726256833117,0.01019475,59917.0,59916.0,0.3638]
[1726256833801,0.01019475,59917.0,59916.0,0.447212]
[1726256835314,0.01019475,59917.0,59916.0,0.3638]
[1726256835709,0.01019475,59917.0,59916.0,0.447212]
[1726256836422,0.01019475,59917.0,59916.0,0.3638]
[1726256838316,0.01019475,59917.0,59916.0,0.447212]
[1726256842221,0.18019475,59917.0,59916.0,0.447212]
[1726256842417,0.23140763,59917.0,59916.0,0.447212]
[1726256843814,0.06140763,59917.0,59916.0,0.447212]
[1726256844319,0.23140764,59917.0,59916.0,0.447212]
[1726256844519,0.23140764,59917.0,59916.0,0.3638]
[1726256845317,0.23140764,59917.0,59916.0,0.447212]
[1726256845617,0.18019475,59917.0,59916.0,0.447212]
[1726256847414,0.18019475,59917.0,59916.0,0.086412]
[1726256847614,0.18019475,59917.0,59916.0,0.447212]
[1726256847816,0.01019475,59917.0,59916.0,0.447212]
[1726256848711,0.01019475,59917.0,59916.0,0.086412]
[1726256850018,0.01019475,59917.0,59916.0,0.003]
[1726256850213,0.26360575,59917.0,59916.0,0.003]
[1726256850415,0.083422,59909.0,59908.0,0.0039]
[1726256850614,0.083425,59907.0,59902.0,0.083431]
[1726256850915,0.083425,59907.0,59898.0,0.0491]
[1726256850916,0.17,59905.0,59898.0,0.0491]
[1726256851114,0.17,59905.0,59904.0,0.083429]
[1726256852019,0.17,59905.0,59898.0,0.0491]
[1726256852020,0.001,59907.0,59906.0,0.083426]
[1726256852418,0.17,59908.0,59906.0,0.083426]
[1726256852618,0.17,59908.0,59907.0,0.083425]
[1726256852916,0.001,59909.0,59908.0,0.083423]
[1726256853114,0.36562,59918.0,59917.0,0.083411]
[1726256853421,0.42064931,59918.0,59917.0,0.083411]
[1726256853719,0.11105336,59918.0,59917.0,0.083411]
[1726256853925,0.05121225,59918.0,59917.0,0.083411]
[1726256854153,0.05947304,59918.0,59917.0,0.083411]
[1726256854330,0.05947304,59918.0,59909.0,0.0039]
[1726256854331,0.67894079,59918.0,59909.0,0.0039]
[1726256854619,0.17,59914.0,59906.0,0.3647]
[1726256854821,0.001,59908.0,59906.0,0.3618]
[1726256855123,0.002,59908.0,59907.0,0.083425]
[1726256855423,0.001,59908.0,59907.0,0.083425]
[1726256855823,0.253415,59914.0,59909.0,0.083422]
[1726256856419,0.17,59914.0,59909.0,0.083422]
[1726256858227,0.083417,59913.0,59909.0,0.444222]
[1726256858533,0.083417,59913.0,59909.0,0.445222]
[1726256858826,0.083417,59913.0,59909.0,0.001]
[1726256858827,0.25342,59910.0,59909.0,0.001]
[1726256859124,0.31327365,59910.0,59909.0,0.001]
[1726256859625,0.31327365,59910.0,59902.0,0.0039]
[1726256859626,0.22985365,59910.0,59902.0,0.0039]
[1726256859832,0.17,59903.0,59901.0,0.3608]
[1726256860022,0.05985365,59902.0,59901.0,0.444233]
[1726256860726,0.05985365,59902.0,59901.0,0.3608]
[1726256860727,0.083432,59902.0,59901.0,0.3608]
[1726256861726,0.14328565,59902.0,59901.0,0.3608]
[1726256861919,0.06085365,59902.0,59901.0,0.445233]
[1726256862117,0.002,59902.0,59901.0,0.3618]
[1726256862517,0.05322493,59902.0,59901.0,0.3618]
[1726256863821,0.06162207,59902.0,59901.0,0.3618]
[1726256864418,0.14505407,59902.0,59901.0,0.3618]
[1726256865726,0.06162207,59902.0,59901.0,0.445233]
[1726256866925,0.01039714,59902.0,59901.0,0.445233]
[1726256867117,0.06162107,59902.0,59901.0,0.445233]
[1726256867529,0.01039714,59902.0,59901.0,0.445233]
[1726256868520,0.18039714,59902.0,59901.0,0.445233]
[1726256869130,0.01039714,59902.0,59901.0,0.445233]
[1726256869730,0.01039714,59902.0,59901.0,0.698666]
[1726256872031,0.01039714,59902.0,59901.0,0.528666]
[1726256872730,0.01039714,59902.0,59901.0,0.612099]
[1726256873031,0.002,59902.0,59901.0,0.782099]
[1726256873428,0.087316,59913.0,59912.0,0.083418]
[1726256873631,0.13463513,59913.0,59912.0,0.083418]
[1726256873834,0.05121913,59913.0,59912.0,0.166836]
[1726256874127,0.17,59922.0,59912.0,0.166836]
[1726256874328,0.083409,59919.0,59918.0,0.083408]
[1726256874534,0.26293257,59919.0,59918.0,0.07506721]
[1726256875033,0.52935519,59919.0,59918.0,0.07506721]
[1726256875838,0.54135519,59919.0,59918.0,0.07506721]
[1726256876038,0.12305428,59919.0,59918.0,0.07506721]
[1726256876334,0.17952357,59919.0,59918.0,0.07606721]
[1726256876533,0.12305428,59919.0,59918.0,0.07606721]
[1726256876719,0.19152357,59919.0,59918.0,0.07606721]
[1726256876925,0.12305428,59919.0,59918.0,0.07606721]
[1726256877327,0.11105428,59919.0,59918.0,0.07806721]
[1726256878539,0.17952357,59919.0,59918.0,0.07806721]
[1726256879034,0.17952357,59919.0,59918.0,0.07906721]
[1726256879426,0.17952357,59919.0,59918.0,0.06281869]
[1726256879634,0.34952357,59919.0,59918.0,0.06081869]
[1726256879824,0.34952357,59919.0,59918.0,0.06181869]
[1726256880224,0.34952357,59919.0,59918.0,0.003]
[1726256880225,0.43293157,59919.0,59918.0,0.003]
[1726256880435,0.36446228,59919.0,59918.0,0.003]
[1726256880637,0.43293157,59919.0,59918.0,0.003]
[1726256880840,0.38171983,59919.0,59918.0,0.003]
[1726256881144,0.43293463,59919.0,59918.0,0.003]
[1726256882038,0.08341,59918.0,59915.0,0.083413]
[1726256882229,0.19446834,59917.0,59915.0,0.083413]
[1726256882425,0.0512148,59916.0,59915.0,0.083413]
[1726256882632,0.176,59919.0,59915.0,0.083413]
[1726256882633,0.0512148,59917.0,59915.0,0.083413]
[1726256882849,0.0512148,59916.0,59915.0,0.083413]
[1726256883031,0.0512148,59918.0,59915.0,0.083413]
[1726256883226,0.05121527,59917.0,59916.0,0.083412]
[1726256883451,5.3e-07,59917.0,59916.0,1.365128]
[1726256883637,0.17,59936.0,59916.0,1.63148]
[1726256883952,0.3608,59947.0,59941.0,0.083377]
[1726256883953,0.0039,59942.0,59941.0,0.083377]
[1726256884167,0.20204585,59946.0,59941.0,0.3608]
[1726256884443,0.05982054,59946.0,59944.0,0.083372]
[1726256884638,0.05982054,59946.0,59941.0,0.3608]
[1726256884639,0.22982054,59946.0,59941.0,0.3608]
[1726256884832,0.22982054,59946.0,59942.0,0.083376]
[1726256885327,0.184,59946.0,59942.0,0.083376]
[1726256885530,0.19245739,59946.0,59942.0,0.083376]
[1726256885730,0.19245739,59946.0,59941.0,0.3608]
[1726256885947,0.17,59942.0,59941.0,0.3608]
[1726256887637,0.184,59942.0,59941.0,0.3618]
[1726256888045,0.195,59942.0,59941.0,0.3628]
[1726256888541,0.24619084,59942.0,59941.0,0.3628]
[1726256889537,0.306007,59942.0,59941.0,0.3628]
[1726256890847,0.306007,59942.0,59941.0,0.3608]
[1726256891050,0.806487,59942.0,59934.0,0.00092]
[1726256891236,0.806487,59942.0,59928.0,0.3647]
[1726256891237,0.083384,59936.0,59929.0,0.083393]
[1726256891440,0.17,59930.0,59929.0,0.083393]
[1726256891636,0.281007,59930.0,59929.0,0.083393]
[1726256892841,0.282007,59930.0,59929.0,0.083393]
[1726256893746,0.35144834,59930.0,59929.0,0.083393]
[1726256894235,0.35144834,59930.0,59928.0,0.3608]
[1726256894437,0.1282575,59929.0,59915.0,0.0039]
[1726256894734,0.083412,59917.0,59913.0,0.0454]
[1726256894947,0.17,59914.0,59903.0,0.0039]
[1726256895134,0.42061616,59916.0,59905.0,0.083427]
[1726256895135,0.17,59907.0,59905.0,0.083427]
[1726256895334,0.05981616,59906.0,59905.0,0.083427]
[1726256895553,0.1282575,59906.0,59901.0,0.05368059]
[1726256895756,0.17,59907.0,59901.0,0.05368059]
[1726256895757,0.1282575,59905.0,59901.0,0.0454]
[1726256895955,0.1282575,59904.0,59901.0,0.0454]
[1726256896150,0.1282575,59903.0,59901.0,0.0454]
[1726256896362,0.1282575,59902.0,59901.0,0.128833]
[1726256896652,0.05981616,59902.0,59901.0,0.128833]
[1726256897346,0.05981616,59902.0,59901.0,0.136833]
[1726256897552,0.001,59903.0,59902.0,0.083432]
[1726256898151,0.001,59902.0,59901.0,0.0534]
[1726256898347,0.002,59902.0,59901.0,0.144833]
[1726256898750,0.001,59902.0,59901.0,0.136833]
[1726256899448,0.001,59902.0,59901.0,0.135833]
[1726256900455,0.002,59902.0,59901.0,0.141833]
[1726256900848,0.085432,59902.0,59901.0,0.141833]
[1726256902454,0.002,59902.0,59901.0,0.141833]
[1726256908558,0.002,59902.0,59901.0,0.225266]
[1726256909348,0.002,59902.0,59901.0,0.308699]
[1726256909947,0.002,59902.0,59901.0,0.356299]
[1726256911860,0.002,59902.0,59901.0,1.817939]
[1726256912666,0.002,59902.0,59901.0,1.134506]
[1726256914966,0.002,59902.0,59901.0,1.217939]
[1726256916864,0.002,59902.0,59901.0,0.717099]
[1726256919952,0.002,59902.0,59901.0,1.817939]
[1726256923966,0.002,59902.0,59901.0,1.901372]
[1726256926269,0.002,59902.0,59901.0,1.301372]
[1726256926672,0.0039,59914.0,59913.0,0.250248]
[1726256926871,0.083407,59920.0,59913.0,0.805016]
[1726256927068,0.083407,59920.0,59919.0,0.3608]
[1726256927878,0.14324681,59920.0,59919.0,0.3608]
[1726256928386,0.085407,59920.0,59919.0,0.444208]
[1726256928586,0.16124681,59920.0,59919.0,0.446208]
[1726256928885,0.101407,59920.0,59919.0,0.446208]
[1726256929085,0.16124681,59920.0,59919.0,0.446208]
[1726256929282,0.092407,59920.0,59919.0,0.445208]
[1726256929590,0.095407,59920.0,59919.0,0.445208]
[1726256930178,0.089407,59920.0,59919.0,0.444208]
[1726256931390,0.006,59920.0,59919.0,0.444208]
[1726256931582,0.003,59920.0,59919.0,0.444208]
[1726256931784,0.006,59920.0,59916.0,0.08341]
[1726256931980,0.083412,59917.0,59916.0,0.08341]
[1726256932182,0.3608,59918.0,59917.0,0.083411]
[1726256932681,0.444209,59918.0,59917.0,0.083411]
[1726256932886,0.50405002,59918.0,59917.0,0.083411]
[1726256933987,0.42064102,59918.0,59917.0,0.083411]
[1726256934299,0.05983811,59918.0,59914.0,0.17]
[1726256934481,0.00827822,59920.0,59914.0,0.17]
[1726256934683,0.083406,59921.0,59919.0,0.083407]
[1726256935284,0.083406,59921.0,59920.0,0.083407]
[1726256936287,0.0467,59922.0,59921.0,0.083405]